bitfinex-derivatives/quotes_ETHF0:USTF0_20250308
["timestamp","ask_amount","ask_price","bid_price","bid_amount"]
[1741409476601,2.1917,2151.9,2151.7,0.92966]
[1741409478095,1.2621,2151.9,2151.8,0.92962]
[1741409478603,1.2621,2151.9,2151.5,0.00697983]
[1741409478803,1.2621,2151.9,2151.7,0.92963]
[1741409479202,2.19167,2151.9,2151.7,0.92963]
[1741409479503,1.2621,2151.9,2151.5,0.00697983]
[1741409479699,1.2621,2151.9,2151.5,0.09697983]
[1741409480000,2.19168,2151.9,2151.7,0.92964]
[1741409482406,1.2621,2151.9,2151.7,0.92964]
[1741409482706,1.2621,2151.9,2151.7,0.92966]
[1741409483103,2.19168,2151.9,2151.7,0.92966]
[1741409483399,1.2621,2151.9,2151.6,3.2078]
[1741409483604,2.7236,2152.0,2151.6,3.2378]
[1741409483605,0.6496,2152.0,2151.6,3.2378]
[1741409483800,0.6496,2152.0,2151.9,0.92957]
[1741409487608,3.3425,2152.2,2151.9,3.2078]
[1741409487808,3.951,2152.2,2151.9,3.2078]
[1741409488010,3.951,2152.2,2152.0,0.9295]
[1741409488213,4.88045,2152.2,2152.0,0.9295]
[1741409489113,3.951,2152.2,2151.9,3.2078]
[1741409489314,3.951,2152.2,2152.0,0.92949]
[1741409489512,3.951,2152.2,2152.0,0.04]
[1741409489815,4.88045,2152.2,2152.0,0.9295]
[1741409490714,0.92951,2152.1,2151.9,3.2078]
[1741409491016,0.92951,2152.1,2151.9,4.17737]
[1741409491409,3.951,2152.2,2151.9,3.2478]
[1741409491610,0.92953,2152.0,2151.9,3.2078]
[1741409491917,3.951,2152.2,2151.8,0.92961]
[1741409492214,0.92956,2152.0,2151.8,0.92961]
[1741409492514,3.951,2152.2,2151.8,0.92961]
[1741409492915,3.951,2152.2,2151.7,0.6521]
[1741409493108,0.92958,2151.9,2151.8,0.92961]
[1741409493306,0.92956,2152.0,2151.8,0.92961]
[1741409493514,0.92955,2152.0,2151.8,0.92961]
[1741409493816,0.6213,2151.9,2151.8,0.92961]
[1741409495320,1.55087,2151.9,2151.8,0.92961]
[1741409496314,0.6213,2151.9,2151.8,0.92961]
[1741409496812,1.55087,2151.9,2151.8,0.92961]
[1741409497013,0.6213,2151.9,2151.8,0.92961]
[1741409497409,1.2376,2152.2,2151.7,0.6521]
[1741409497716,0.92954,2152.0,2151.8,0.9296]
[1741409497916,0.92954,2152.0,2151.8,0.9696]
[1741409498821,0.92957,2151.9,2151.8,0.04]
[1741409499624,0.6572,2152.1,2151.8,0.04]
[1741409499823,0.92957,2152.0,2151.8,0.04]
[1741409500224,0.92957,2152.0,2151.8,0.9696]
[1741409504223,0.6572,2152.1,2151.8,0.04]
[1741409504434,1.58672,2152.1,2151.9,0.92957]
[1741409504929,1.58672,2152.1,2151.7,0.6521]
[1741409505130,0.92953,2152.0,2151.8,0.92958]
[1741409505330,1.58673,2152.1,2151.8,0.98958]
[1741409506031,1.58673,2152.1,2151.9,0.92957]
[1741409506330,3.2078,2152.9,2152.0,3.2078]
[1741409506626,0.92941,2152.3,2152.0,4.1573]
[1741409506827,0.92941,2152.3,2152.2,0.00697983]
[1741409507029,0.92938,2152.4,2152.2,0.00697983]
[1741409507229,0.92938,2152.4,2152.2,0.93641983]
[1741409507434,0.92939,2152.4,2152.2,0.00697983]
[1741409508438,1.2729,2152.5,2152.2,0.00697983]
[1741409508940,2.20223,2152.5,2152.2,0.00697983]
[1741409509238,0.92937,2152.4,2152.2,0.93639983]
[1741409509538,0.9294,2152.3,2152.2,0.00697983]
[1741409509730,0.92939,2152.4,2152.2,0.00697983]
[1741409509930,0.9294,2152.3,2152.2,0.00697983]
[1741409510327,0.92938,2152.4,2152.2,0.93641983]
[1741409511842,0.92938,2152.4,2152.2,4.14421983]
[1741409512040,1.2729,2152.5,2152.2,4.14421983]
[1741409512233,0.92936,2152.4,2152.2,4.14421983]
[1741409514340,0.9294,2152.3,2152.2,3.21477983]
[1741409514642,0.9294,2152.3,2152.2,4.14421983]
[1741409514837,0.9294,2152.3,2152.2,3.21477983]
[1741409515837,0.92953,2152.0,2151.9,3.2078]
[1741409516140,2.072,2152.3,2151.7,0.92966]
[1741409516141,3.2078,2152.1,2151.7,0.92966]
[1741409516441,0.92961,2151.9,2151.7,0.92966]
[1741409516841,0.92958,2151.9,2151.7,0.92962]
[1741409518646,0.6451,2151.8,2151.7,0.92962]
[1741409519036,1.57473,2151.8,2151.6,4.14445983]
[1741409519241,1.57473,2151.8,2151.6,4.22445983]
[1741409519442,0.6451,2151.8,2151.7,0.92966]
[1741409521247,1.57472,2151.8,2151.6,4.14443983]
[1741409521444,1.57472,2151.8,2151.6,4.24443983]
[1741409521747,0.6451,2151.8,2151.7,0.92966]
[1741409521939,1.57472,2151.8,2151.6,4.14444983]
[1741409522239,0.6451,2151.8,2151.6,4.23444983]
[1741409522445,0.6451,2151.8,2151.6,3.30477983]
[1741409522446,0.92966,2151.7,2151.6,3.30477983]
[1741409522742,0.92966,2151.7,2151.6,3.21477983]
[1741409522947,7.2078,2151.7,2151.1,3.2078]
[1741409523143,0.92988,2151.2,2151.1,0.38]
[1741409523341,2.071,2151.4,2151.1,0.38]
[1741409523537,3.0008,2151.4,2151.2,0.92986]
[1741409523832,3.0008,2151.4,2151.2,0.02]
[1741409524049,0.92983,2151.3,2151.2,0.02]
[1741409524947,0.92988,2151.2,2151.1,3.21477983]
[1741409525135,2.78748,2151.2,2151.1,3.21477983]
[1741409525644,2.78748,2151.2,2151.1,0.00697983]
[1741409526041,3.15557528,2151.2,2151.1,0.00697983]
[1741409526242,3.15557528,2151.2,2150.6,3.2078]
[1741409526243,6.22569528,2151.2,2150.6,3.2078]
[1741409526443,0.93009,2150.7,2150.6,3.5478]
[1741409526645,0.93007,2150.8,2150.6,4.47793]
[1741409526851,0.93009,2150.7,2150.6,3.5478]
[1741409527648,2.77317,2150.8,2150.6,3.5478]
[1741409528048,0.93009,2150.7,2150.6,3.5478]
[1741409529639,0.93009,2150.7,2150.6,3.2078]
[1741409530447,0.93009,2150.7,2150.4,0.00697983]
[1741409530448,0.93017,2150.6,2150.4,0.00697983]
[1741409530647,0.93017,2150.6,2150.4,0.13697983]
[1741409530853,0.6647,2150.5,2150.4,0.13697983]
[1741409531554,0.6647,2150.5,2150.4,1.06719983]
[1741409532153,2.16687,2150.8,2150.5,0.93014]
[1741409532347,1.9015,2150.8,2150.5,0.93014]
[1741409532652,2.83158,2150.8,2150.4,0.00697983]
[1741409532847,2.83158,2150.8,2150.5,0.93016]
[1741409533048,0.93009,2150.7,2150.5,0.93016]
[1741409533247,2.83158,2150.8,2150.5,0.93016]
[1741409533547,1.9015,2150.8,2150.6,1.55002]
[1741409534049,1.2368,2150.8,2150.6,0.6199]
[1741409534257,0.00697983,2150.9,2150.6,3.9377]
[1741409534454,0.00697983,2150.9,2150.7,0.6348]
[1741409534654,0.00697983,2150.9,2150.8,0.93005]
[1741409535044,0.00697983,2150.9,2150.7,1.56487]
[1741409535245,0.93005,2150.8,2150.7,0.06]
[1741409536649,0.00697983,2150.9,2150.7,0.06]
[1741409537657,0.00697983,2150.9,2150.8,0.93005]
[1741409538349,0.00697983,2150.9,2150.6,3.8277]
[1741409538555,0.93701983,2150.9,2150.7,0.93008]
[1741409538857,0.93009,2150.7,2150.6,3.8277]
[1741409539152,0.93009,2150.7,2150.6,3.9077]
[1741409540152,0.93009,2150.7,2150.6,3.2878]
[1741409540352,0.93009,2150.7,2150.6,3.2078]
[1741409542552,3.2078,2150.8,2150.4,0.00697983]
[1741409542752,0.93018,2150.5,2150.4,0.00697983]
[1741409543459,2.84636,2150.6,2150.4,0.93718983]
[1741409543955,0.00697983,2150.9,2150.4,0.00697983]
[1741409544158,1.88797983,2150.9,2150.5,3.2078]
[1741409544358,0.93006,2150.8,2150.6,1.54851]
[1741409544559,0.93006,2150.8,2150.6,1.2802]
[1741409544963,0.93006,2150.8,2150.6,2.21031]
[1741409545262,1.88797983,2150.9,2150.6,2.21031]
[1741409545561,0.93009,2150.7,2150.6,1.2802]
[1741409545855,0.93009,2150.7,2150.6,2.21034]
[1741409546158,0.93008,2150.8,2150.6,2.21034]
[1741409546559,0.93009,2150.7,2150.6,2.21034]
[1741409546754,0.93009,2150.7,2150.6,1.2802]
[1741409548066,0.93008,2150.8,2150.6,2.21032]
[1741409548762,1.88797983,2150.9,2150.6,1.2802]
[1741409548963,0.93700983,2150.9,2150.7,0.93008]
[1741409549265,0.00697983,2150.9,2150.6,1.2802]
[1741409549469,0.93700983,2150.9,2150.7,0.93008]
[1741409549965,0.93005,2150.8,2150.7,0.93008]
[1741409550465,0.93005,2150.8,2150.6,2.2103]
[1741409550657,0.00697983,2150.9,2150.7,0.93006]
[1741409550658,0.93699983,2150.9,2150.7,0.93006]
[1741409551267,0.93005,2150.8,2150.7,0.93006]
[1741409551563,0.93700983,2150.9,2150.7,0.93006]
[1741409552265,0.00697983,2150.9,2150.7,0.93006]
[1741409552467,0.93701983,2150.9,2150.7,0.93006]
[1741409552668,0.00697983,2150.9,2150.7,0.93007]
[1741409552859,0.93699983,2150.9,2150.7,0.93007]
[1741409553559,0.93701983,2150.9,2150.7,0.93007]
[1741409554065,0.93005,2150.8,2150.7,0.93007]
[1741409554267,0.00697983,2150.9,2150.7,0.93007]
[1741409554464,0.93701983,2150.9,2150.7,0.93007]
[1741409554967,0.93701983,2150.9,2150.7,0.93008]
[1741409555171,0.00697983,2150.9,2150.7,0.93008]
[1741409555468,0.93005,2150.8,2150.7,0.93008]
[1741409556459,0.93005,2150.8,2150.6,1.2802]
[1741409556659,0.93005,2150.8,2150.6,2.2503]
[1741409558269,0.00697983,2150.9,2150.6,2.2503]
[1741409558270,0.93700983,2150.9,2150.7,0.93008]
[1741409559563,0.00697983,2150.9,2150.8,0.93005]
[1741409560171,0.00697983,2150.9,2150.8,4.13785]
[1741409561170,0.00697983,2150.9,2150.8,4.14785]
[1741409569779,0.92986,2151.3,2151.1,0.9299]
[1741409569979,0.92986,2151.3,2151.1,4.1377]
[1741409570380,0.92988,2151.2,2151.1,3.2078]
[1741409571081,0.92999,2151.0,2150.8,4.13782]
[1741409571280,1.3133,2150.9,2150.8,4.19782]
[1741409571476,2.24331,2150.9,2150.8,3.2678]
[1741409571676,2.84911,2150.9,2150.8,3.2678]
[1741409573284,2.84911,2150.9,2150.8,4.19785]
[1741409573480,0.92999,2151.0,2150.8,4.19785]
[1741409574386,0.6058,2151.2,2150.8,3.2678]
[1741409574686,1.5357,2151.2,2150.9,0.6134]
[1741409574877,1.5357,2151.2,2151.0,0.92992]
[1741409575077,1.5357,2151.2,2151.0,1.54512]
[1741409575477,1.5357,2151.2,2151.1,0.92992]
[1741409575677,1.5357,2151.2,2151.0,0.6152]
[1741409575886,1.5357,2151.2,2151.0,1.54512]
[1741409576078,1.5357,2151.2,2151.0,1.54514]
[1741409576385,0.6058,2151.2,2151.0,0.6152]
[1741409576587,0.6058,2151.2,2151.1,0.92992]
[1741409576883,0.6058,2151.2,2151.1,0.95992]
[1741409577083,2.24226,2151.3,2151.1,0.95992]
[1741409577485,2.24226,2151.3,2151.2,0.6051]
[1741409577789,1.3124,2151.3,2151.2,0.6051]
[1741409577976,2.24223,2151.3,2151.2,0.6051]
[1741409578881,1.3124,2151.3,2151.2,0.6051]
[1741409579083,2.24223,2151.3,2151.2,0.6051]
[1741409579883,1.3124,2151.3,2151.2,0.6051]
[1741409580080,0.6686,2151.3,2151.2,1.53498]
[1741409580485,1.59843,2151.3,2151.2,0.6051]
[1741409580877,0.6686,2151.3,2151.2,0.6051]
[1741409581083,0.6686,2151.3,2151.2,1.53498]
[1741409581786,1.59843,2151.3,2151.2,0.6051]
[1741409582390,1.59843,2151.3,2151.1,4.13771]
[1741409582391,0.6686,2151.3,2151.1,3.2078]
[1741409582583,0.92988,2151.2,2151.1,4.1777]
[1741409583687,1.59846,2151.3,2151.1,4.1777]
[1741409583883,1.59846,2151.3,2151.2,0.92988]
[1741409584288,1.59846,2151.3,2151.1,4.76689]
[1741409584591,1.59846,2151.3,2151.2,0.92988]
[1741409585984,1.59846,2151.3,2151.1,3.837]
[1741409586185,1.59846,2151.3,2151.2,0.92988]
[1741409586689,0.6686,2151.3,2151.2,0.92988]
[1741409589388,0.6686,2151.3,2151.2,0.93988]
[1741409594692,0.6686,2151.3,2151.2,0.01]
[1741409594890,1.59843,2151.3,2151.2,0.01]
[1741409595087,1.59843,2151.3,2151.2,0.02]
[1741409595088,0.6686,2151.3,2151.2,0.02]
[1741409595393,0.6686,2151.3,2151.0,4.13775]
[1741409595394,0.92989,2151.2,2151.0,4.13775]
[1741409595594,1.56539,2151.2,2151.0,4.25775]
[1741409595995,0.6355,2151.2,2151.0,3.3278]
[1741409596292,1.56538,2151.2,2151.0,4.25773]
[1741409597500,0.6355,2151.2,2151.0,3.3278]
[1741409597699,0.6355,2151.2,2151.1,0.92992]
[1741409597889,1.56538,2151.2,2151.1,0.05]
[1741409598195,0.6355,2151.2,2151.1,0.97992]
[1741409598992,0.00697983,2151.4,2151.1,0.05]
[1741409599198,0.00697983,2151.4,2151.3,4.13763]
[1741409599402,0.00697983,2151.4,2151.3,4.20763]
[1741409600086,0.00697983,2151.4,2151.3,3.2778]
[1741409600287,0.93676983,2151.4,2151.3,3.2778]
[1741409600491,0.9299,2151.2,2151.0,4.13775]
[1741409600802,1.2414,2151.1,2151.0,4.33775]
[1741409601194,2.17132,2151.1,2151.0,3.2078]
[1741409601399,4.4492,2151.1,2150.5,4.74545]
[1741409601592,0.93009,2150.7,2150.5,4.93545]
[1741409601999,0.6081,2150.6,2150.5,4.93545]
[1741409603894,1.28,2150.7,2150.6,0.93014]
[1741409604088,1.53809,2151.0,2150.6,1.06014]
[1741409604293,2.84879,2151.0,2150.7,0.93008]
[1741409604494,1.9188,2151.0,2150.7,0.97008]
[1741409604800,0.93001,2150.9,2150.7,0.97008]
[1741409605207,0.00697983,2151.4,2150.8,3.2078]
[1741409605499,2.24099,2151.2,2150.9,0.6596]
[1741409605701,2.24099,2151.2,2150.9,0.7196]
[1741409606003,2.24099,2151.2,2150.9,1.64959]
[1741409606395,0.92992,2151.1,2150.9,1.64959]
[1741409607104,2.241,2151.2,2150.9,1.64959]
[1741409607408,1.3111,2151.2,2150.9,0.7196]
[1741409607702,1.3111,2151.2,2151.0,0.92993]
[1741409608098,1.3111,2151.2,2151.1,0.92992]
[1741409608305,0.6617,2151.3,2151.2,0.92988]
[1741409608503,1.2989,2151.3,2151.2,0.92988]
[1741409609496,0.00697983,2151.4,2151.3,0.92983]
[1741409609799,0.00697983,2151.4,2151.3,1.60993]
[1741409613404,0.00697983,2151.4,2151.3,0.03]
[1741409613611,0.00697983,2151.4,2151.3,0.95983]
[1741409613808,0.00697983,2151.4,2151.3,0.03]
[1741409614199,0.00697983,2151.4,2151.1,4.1377]
[1741409614406,0.00697983,2151.4,2151.1,4.2577]
[1741409614599,0.00697983,2151.4,2151.1,3.3278]
[1741409615207,0.92985,2151.3,2151.1,3.3278]
[1741409615405,1.9257,2151.2,2151.1,4.25772]
[1741409615605,1.9257,2151.2,2151.1,3.3278]
[1741409616006,2.85558,2151.2,2151.1,3.3278]
[1741409616204,2.85558,2151.2,2151.1,3.2078]
[1741409616514,1.2771,2151.2,2151.1,4.19772]
[1741409619016,0.00697983,2151.4,2151.1,3.2678]
[1741409619417,0.00697983,2151.4,2151.3,0.92983]
[1741409619615,0.00697983,2151.4,2151.3,1.02983]
[1741409619916,0.00697983,2151.4,2151.3,1.66433]
[1741409627212,0.00697983,2151.4,2151.3,1.02983]
[1741409627516,0.00697983,2151.4,2151.3,1.66343]
[1741409631620,0.00697983,2151.4,2151.3,1.02983]
[1741409631826,0.00697983,2151.4,2151.3,0.1]
[1741409632027,0.93676983,2151.4,2151.1,4.13769]
[1741409632222,0.92988,2151.2,2151.1,3.3078]
[1741409632524,0.92988,2151.2,2151.1,3.2078]
[1741409632725,1.57878,2151.2,2151.1,3.2078]
[1741409633420,0.6489,2151.2,2151.1,4.13772]
[1741409633927,1.57878,2151.2,2151.1,3.2078]
[1741409634526,0.6489,2151.2,2151.1,4.13772]
[1741409634722,0.665,2151.3,2151.1,3.2278]
[1741409635027,0.665,2151.3,2151.2,0.92988]
[1741409636617,0.665,2151.3,2151.2,0.95988]
[1741409636821,0.65527983,2151.4,2151.3,0.92983]
[1741409640531,0.65527983,2151.4,2151.2,0.92986]
[1741409640727,0.65527983,2151.4,2151.2,0.97986]
[1741409641022,1.58507983,2151.4,2151.2,0.97986]
[1741409641627,0.65527983,2151.4,2151.2,0.97986]
[1741409641930,0.65527983,2151.4,2151.3,0.92983]
[1741409642423,0.00697983,2151.4,2151.3,0.92983]
[1741409643223,2.067,2151.8,2151.3,0.01]
[1741409643421,1.57589,2151.7,2151.5,0.92972]
[1741409643627,0.6462,2151.7,2151.6,0.9297]
[1741409643926,0.6462,2151.7,2151.5,0.92975]
[1741409644422,0.6462,2151.7,2151.6,0.9297]
[1741409646526,0.6462,2151.7,2151.4,4.4982]
[1741409646722,0.6462,2151.7,2151.5,0.92973]
[1741409646927,0.6462,2151.7,2151.5,0.96973]
[1741409647123,0.6462,2151.7,2151.6,0.9297]
[1741409647721,0.6462,2151.7,2151.4,4.4982]
[1741409647923,1.57587,2151.7,2151.5,0.92973]
[1741409648123,1.57587,2151.7,2151.5,0.96973]
[1741409648324,0.6462,2151.7,2151.5,0.04]
[1741409648521,0.6462,2151.7,2151.6,0.9297]
[1741409648725,0.6462,2151.7,2151.5,0.92973]
[1741409648922,1.57587,2151.7,2151.5,0.96973]
[1741409649329,0.6462,2151.7,2151.5,0.96973]
[1741409649522,0.6462,2151.7,2151.6,0.9297]
[1741409650823,1.57586,2151.7,2151.5,0.92973]
[1741409651025,0.6462,2151.7,2151.5,0.03]
[1741409651230,0.9297,2151.6,2151.5,0.03]
[1741409651528,1.57589,2151.7,2151.5,0.95973]
[1741409652431,0.6462,2151.7,2151.6,0.9297]
[1741409652619,0.6462,2151.7,2151.6,1.5817]
[1741409652825,0.00697983,2151.8,2151.7,0.92966]
[1741409653731,0.00697983,2151.8,2151.7,4.13746]
[1741409657629,0.00697983,2151.8,2151.7,4.14746]
[1741409657830,0.6631,2152.0,2151.9,0.92957]
[1741409658735,1.2627,2152.1,2152.0,0.92953]
[1741409659037,0.6098,2152.3,2152.1,0.92946]
[1741409659236,1.8725,2152.3,2152.1,0.92946]
[1741409659736,2.80191,2152.3,2152.1,0.92946]
[1741409660238,2.80191,2152.3,2151.7,5.5319]
[1741409660438,1.8725,2152.3,2151.9,0.92956]
[1741409660640,0.9295,2152.1,2151.9,0.92956]
[1741409661234,0.92946,2152.2,2152.0,0.92953]
[1741409661741,0.92946,2152.2,2151.7,3.2078]
[1741409661943,0.92946,2152.2,2151.9,0.92954]
[1741409662139,0.92952,2152.1,2151.7,3.2078]
[1741409662440,1.8725,2152.3,2151.9,0.92957]
[1741409662640,0.92946,2152.2,2152.0,0.92953]
[1741409662835,1.8725,2152.3,2151.9,0.92954]
[1741409663036,0.92957,2152.0,2151.8,0.9296]
[1741409663241,2.18777,2151.9,2151.7,4.13744]
[1741409663442,0.6666,2151.8,2151.7,3.2078]
[1741409663835,0.6666,2151.8,2151.7,4.13746]
[1741409664236,1.2582,2151.9,2151.8,0.92962]
[1741409665537,1.9034,2151.9,2151.8,0.92962]
[1741409665738,3.2078,2152.3,2151.7,3.2078]
[1741409665946,1.9012,2152.2,2151.9,0.92955]
[1741409666346,0.9295,2152.1,2151.8,0.6458]
[1741409666643,0.92954,2152.0,2151.7,4.13744]
[1741409666847,1.9012,2152.2,2151.7,3.2078]
[1741409667046,0.92962,2151.8,2151.7,3.2078]
[1741409667244,0.92962,2151.8,2151.6,0.92969]
[1741409667543,1.2236,2151.7,2151.5,0.00697983]
[1741409667846,0.9297,2151.6,2151.5,0.00697983]
[1741409668643,0.92989,2151.2,2151.0,3.2078]
[1741409668847,0.6186,2151.1,2151.0,3.2078]
[1741409669550,2.83302,2151.1,2151.0,3.2078]
[1741409672652,2.18842,2151.1,2151.0,3.2078]
[1741409673147,1.2585,2151.1,2151.0,3.2078]
[1741409673655,1.2585,2151.1,2151.0,4.13776]
[1741409675151,0.00697983,2151.3,2151.1,0.92989]
[1741409675351,0.00697983,2151.3,2151.1,1.54549]
[1741409676357,0.00697983,2151.3,2151.2,0.92988]
[1741409676863,2.99559,2151.9,2151.2,0.02]
[1741409677064,2.9956,2151.9,2151.6,0.92968]
[1741409677359,2.9956,2151.9,2151.5,0.92972]
[1741409677360,0.92962,2151.8,2151.5,0.92972]
[1741409677555,2.066,2151.9,2151.6,0.6156]
[1741409677860,2.99559,2151.9,2151.6,1.54529]
[1741409678260,0.92962,2151.8,2151.6,0.6156]
[1741409678458,2.066,2151.9,2151.6,0.6156]
[1741409678658,2.21074,2152.0,2151.7,0.92964]
[1741409678853,1.2812,2152.0,2151.7,0.92964]
[1741409679060,1.2812,2152.0,2151.8,0.92959]
[1741409680060,1.2812,2152.0,2151.7,3.8709]
[1741409680358,0.6242,2152.2,2151.8,0.92958]
[1741409680552,1.2914,2152.1,2151.8,0.92958]
[1741409680757,2.22091,2152.1,2151.8,0.92958]
[1741409681555,2.22091,2152.1,2151.7,3.8709]
[1741409681556,0.92962,2151.8,2151.7,3.8709]
[1741409681757,0.92962,2151.8,2151.7,3.2078]
[1741409685865,2.066,2151.9,2151.7,3.2078]
[1741409686371,2.99558,2151.9,2151.7,4.13745]
[1741409686763,2.99557,2151.9,2151.7,4.13743]
[1741409687071,0.92957,2151.9,2151.8,0.6417]
[1741409687262,0.92956,2152.0,2151.8,0.6417]
[1741409687457,0.92957,2151.9,2151.8,0.6417]
[1741409687662,0.92962,2151.8,2151.7,3.2078]
[1741409688268,1.2914,2152.1,2151.7,4.13746]
[1741409688464,0.92961,2151.9,2151.7,4.13746]
[1741409688865,1.2914,2152.1,2151.7,3.2078]
[1741409689369,0.92962,2151.8,2151.7,3.2078]
[1741409691469,4.4992,2152.1,2151.7,4.13744]
[1741409691675,0.92962,2151.8,2151.7,3.2078]
[1741409692373,0.92961,2151.9,2151.7,4.13745]
[1741409692671,2.99462,2151.8,2151.7,2.11471]
[1741409692968,0.92985,2151.3,2151.1,4.13771]
[1741409693167,0.92987,2151.3,2151.1,3.2678]
[1741409693476,0.92973,2151.6,2151.1,3.2678]
[1741409693778,0.92973,2151.6,2151.4,0.92977]
[1741409693974,0.92973,2151.6,2151.5,0.6579]
[1741409694666,1.9032,2151.7,2151.5,0.6579]
[1741409694870,1.54199,2151.7,2151.5,0.6579]
[1741409695073,0.9297,2151.6,2151.5,0.6579]
[1741409695870,0.6123,2151.7,2151.5,0.6579]
[1741409696078,1.54199,2151.7,2151.5,0.6579]
[1741409696279,1.54199,2151.7,2151.5,1.58764]
[1741409696579,1.54199,2151.7,2151.5,0.6579]
[1741409698480,1.54199,2151.7,2151.5,1.58764]
[1741409698675,1.54199,2151.7,2151.5,0.6579]
[1741409699877,0.6123,2151.7,2151.5,0.6579]
[1741409700080,1.54199,2151.7,2151.5,1.58763]
[1741409700372,1.54199,2151.7,2151.5,0.6579]
[1741409701286,4.2478,2151.9,2151.6,0.92969]
[1741409701476,3.3182,2151.9,2151.7,0.6521]
[1741409701676,0.92962,2151.8,2151.7,0.6521]
[1741409702175,0.644,2151.8,2151.5,0.6579]
[1741409702479,0.644,2151.8,2151.2,0.92986]
[1741409702680,0.644,2151.8,2151.2,1.04986]
[1741409703077,0.92979,2151.4,2151.2,1.04986]
[1741409703276,0.92983,2151.3,2151.2,0.12]
[1741409706985,0.92988,2151.2,2151.1,3.2078]
[1741409707183,1.3091,2151.2,2150.9,1.2956]
[1741409707377,1.55344,2151.1,2150.9,2.22561]
[1741409707685,2.23898,2151.2,2151.0,0.92994]
[1741409709185,1.3091,2151.2,2151.0,0.92994]
[1741409709383,2.23898,2151.2,2151.0,0.92994]
[1741409709579,0.6665,2151.4,2150.9,1.2956]
[1741409709774,1.59632,2151.4,2150.9,1.3556]
[1741409710083,0.92983,2151.3,2151.0,0.92992]
[1741409710284,1.59632,2151.4,2151.0,0.07]
[1741409710484,2.065,2151.5,2151.4,0.92979]
[1741409710688,0.92977,2151.5,2151.3,0.92983]
[1741409710888,0.92977,2151.5,2151.4,1.3068]
[1741409711979,2.18683,2151.6,2151.4,2.23659]
[1741409712176,1.2571,2151.6,2151.4,1.3068]
[1741409712485,1.2571,2151.6,2151.1,4.1377]
[1741409712684,0.92985,2151.3,2151.1,3.3878]
[1741409712886,0.6348,2151.2,2151.1,3.3878]
[1741409713687,0.92978,2151.5,2151.2,0.92985]
[1741409713891,1.53688,2151.5,2151.2,0.04]
[1741409714092,1.53688,2151.5,2151.2,0.96985]
[1741409714692,0.6071,2151.5,2151.2,0.04]
[1741409714986,1.53686,2151.5,2151.3,0.92982]
[1741409715185,1.53686,2151.5,2151.1,3.8764]
[1741409715387,1.53686,2151.5,2151.2,0.92985]
[1741409715688,0.9298,2151.4,2151.2,0.96985]
[1741409715883,0.92983,2151.3,2151.1,4.13771]
[1741409716090,0.92983,2151.3,2151.1,4.14771]
[1741409716091,1.53273,2151.3,2151.1,4.14771]
[1741409716492,1.53275,2151.3,2151.1,3.2178]
[1741409716691,1.53275,2151.3,2151.1,4.14771]
[1741409716993,0.6029,2151.3,2151.1,4.14771]
[1741409717190,1.53275,2151.3,2151.1,4.14771]
[1741409718291,0.6029,2151.3,2151.1,4.14771]
[1741409718590,1.53275,2151.3,2151.1,3.2178]
[1741409719792,0.6419,2151.2,2151.1,3.2178]
[1741409720593,1.3087,2151.2,2151.1,3.2178]
[1741409721597,1.3087,2151.2,2151.1,4.14772]
[1741409722495,0.6029,2151.3,2151.1,3.2178]
[1741409722691,0.6029,2151.3,2151.2,1.59158]
[1741409722898,0.6029,2151.3,2151.2,2.24248]
[1741409724100,1.3156,2151.5,2151.2,1.3126]
[1741409724297,2.24536,2151.5,2151.3,0.92982]
[1741409724798,2.24536,2151.5,2151.3,0.92983]
[1741409725105,1.3156,2151.5,2151.2,1.3126]
[1741409725300,0.92982,2151.4,2151.2,2.24245]
[1741409725493,0.92982,2151.4,2151.2,2.24247]
[1741409725997,0.9298,2151.4,2151.2,1.3126]
[1741409726189,1.3156,2151.5,2151.2,0.6617]
[1741409726395,0.92982,2151.4,2151.2,0.6617]
[1741409726789,2.24537,2151.5,2151.2,1.59157]
[1741409727201,1.3156,2151.5,2151.2,1.59157]
[1741409727407,2.24538,2151.5,2151.2,1.59157]
[1741409727702,2.24538,2151.5,2151.3,0.92982]
[1741409727902,1.3156,2151.5,2151.2,0.6617]
[1741409728204,0.92982,2151.4,2151.2,1.59158]
[1741409729095,2.24536,2151.5,2151.3,0.92981]
[1741409731706,0.92979,2151.4,2151.2,1.59155]
[1741409731906,0.92979,2151.4,2151.3,0.92983]
[1741409732109,0.92979,2151.4,2151.2,1.59156]
[1741409733502,1.3156,2151.5,2151.2,1.59156]
[1741409733810,0.92981,2151.4,2151.2,1.59154]
[1741409734705,0.92981,2151.4,2151.2,1.59156]
[1741409735208,0.92983,2151.4,2151.2,1.59156]
[1741409736004,0.92979,2151.4,2151.2,1.59156]
[1741409736406,0.92988,2151.2,2151.1,3.2078]
[1741409736610,0.92988,2151.2,2151.1,3.2478]
[1741409737898,0.92986,2151.3,2151.1,4.17769]
[1741409738107,0.6339,2151.2,2151.1,4.17769]
[1741409738300,0.9298,2151.4,2151.1,3.2478]
[1741409738505,0.9298,2151.4,2151.2,2.20904]
[1741409739009,0.9298,2151.4,2151.3,0.92983]
[1741409739309,0.92979,2151.4,2151.3,0.92983]
[1741409740103,2.88069,2151.5,2151.2,2.20905]
[1741409740303,0.9856358,3097.6,2151.2,1.3492]
[1741409740304,3.2078,2152.0,2151.2,1.3492]
[1741409740504,0.92966,2151.7,2151.5,0.92973]
[1741409740705,1.2445,2151.8,2151.3,0.6391]
[1741409740900,0.92966,2151.7,2151.5,0.92971]